Cogmind - Beta 9.4 @@@ ROGUE MODE // 2020.03.17 @ 15:55:00 Player: Terminus Result: Destroyed by D-53 Grenadier with Mini Grenade Launcher Performance ------------- Evolutions (0) 0 Regions Visited (4) 800 Robots Destroyed (45) 225 Value Destroyed (852) 852 Prototype IDs (0) 0 Alien Tech Used (0) 0 Bonus (50) 50 TOTAL SCORE: 1927 Bonus ------- Follower Combat Kills 50 Cogmind --------- Core Integrity 0/250 Matter 280/300 Energy 63/250 System Corruption 0% Temperature Cool (0) Movement Walking (270) Ox5 Location -9/Mines Parts ------- > --- POWER (1) -------- Ion Engine > --- PROPULSION (2) --- Aluminum Leg > --- UTILITY (2) ------ Large Storage Unit High-capacity Storage Unit > --- WEAPON (2) ------- (None) > --- INVENTORY (18) --- Aluminum Leg Heat Sink Improved Heat Sink Improved Heat Sink Light Armor Plating Light Armor Plating Hacking Suite Hacking Suite EM Pulse Gun Beam Cannon Beam Cannon Beam Cannon Rocket Launcher Peak State ------------ > --- POWER ------------ Ion Engine > --- PROPULSION ------- Aluminum Leg Carbon-fiber Leg > --- UTILITY ---------- Large Storage Unit High-capacity Storage Unit > --- WEAPON ----------- Beam Cannon Assault Rifle > --- INVENTORY -------- Ion Engine Aluminum Leg Aluminum Leg Heat Sink Improved Heat Sink Improved Heat Sink Light Armor Plating Light Armor Plating Hacking Suite Hacking Suite EM Pulse Gun EM Pulse Gun EM Pulse Gun EM Pulse Gun Beam Cannon Beam Cannon Beam Cannon Rocket Launcher [Rating: 11] Favorites ----------- Power Ion Engine Engine Ion Engine Propulsion Aluminum Leg Leg Aluminum Leg Utility High-capacity Storage Unit Storage High-capacity Storage Unit Weapon Assault Rifle Energy Gun Small Laser Energy Cannon Beam Cannon Ballistic Gun Assault Rifle Build | -11 -10 -10 -10 -9 ------- Run | Scr Mat Min Exi Min Slots Evolved . | . . . . . Power . | . . . . . Propulsion . | . . . . . Utility . | . . . . . Weapon . | . . . . . Parts Attached 23 | 7 7 2 . 7 Power 3 | 1 1 . . 1 Engine 3 | 1 1 . . 1 Core . | . . . . . Reactor . | . . . . . Propulsion 7 | 2 2 1 . 2 Treads . | . . . . . Leg 7 | 2 2 1 . 2 Wheel . | . . . . . Hover . | . . . . . Flight . | . . . . . Utility 4 | 2 2 . . . Device . | . . . . . Storage 4 | 2 2 . . . Processor . | . . . . . Hackware . | . . . . . Protection . | . . . . . Artifact . | . . . . . Weapon 9 | 2 2 1 . 4 Energy Gun 4 | . 1 . . 3 Energy Cannon 2 | . 1 . . 1 Ballistic Gun 3 | 2 . 1 . . Ballistic Cannon . | . . . . . Launcher . | . . . . . Special Weapon . | . . . . . Impact Weapon . | . . . . . Slashing Weapon . | . . . . . Piercing Weapon . | . . . . . Special Melee Weapon . | . . . . . Unidentified Prototypes . | . . . . . Parts Lost 10 | . 1 1 . 8 Power 1 | . . . . 1 Propulsion 2 | . . . . 2 Utility . | . . . . . Weapon 7 | . 1 1 . 5 Highest Loss Streak 7 | . 1 1 . 7 Average Slot Usage (%) 99 | . 100 99 100 87 Engine 13 | . 14 14 14 12 Leg 27 | . 28 28 28 22 Storage 28 | . 28 28 28 28 Energy Cannon 10 | . 6 14 14 8 Ballistic Gun 17 | . 21 13 14 8 Naked Turns . | . . . . . Heaviest Build 58 | 17 58 58 58 58 Greatest Support 25 | 20 20 20 20 25 Greatest Overweight (x) 5 | 2 2 2 2 5 Average Overweight (x) 1 | . 1 2 2 2 Largest Inventory Capacity 18 | 8 18 18 18 18 Average Capacity 16 | 5 15 18 18 18 Most Carried 18 | 1 18 18 18 18 Average Carried 14 | . 12 17 18 16 Final Capacity 18 | 8 18 18 18 18 Final Carried 18 | 1 18 18 18 13 Class Distribution -------------------- 100% | Mutant Dominant Class ---------------- Mutant | -10/Materials Mutant | -10/Mines Mutant | -10/Exiles Mutant | -9/Mines Resources | -11 -10 -10 -10 -9 ----------- Run | Scr Mat Min Exi Min Matter Collected 878 | 253 530 56 . 39 Remotely . | . . . . . Salvage Created 1292 | 68 903 227 . 94 Parts 97 | 2 74 11 . 10 Haulers Intercepted 2 | . 2 . . . Recyclers Shooed . | . . . . . Parts Field Recycled . | . . . . . Retrieved Matter . | . . . . . Parts Self-Destructed . | . . . . . Prevented . | . . . . . Kills | -11 -10 -10 -10 -9 ------- Run | Scr Mat Min Exi Min Combat Hostiles Destroyed 29 | . 19 5 . 5 Guns 19 | . 16 2 . 1 Cannons 10 | . 3 3 . 4 Classes Destroyed 9 | 1 7 . . 1 Worker 2 | . 1 . . 1 Builder 4 | . 3 1 . . Hauler 2 | . 2 . . . Recycler 2 | 1 1 . . . Operator 3 | . 3 . . . Watcher 3 | . 3 . . . Swarmer 14 | . 9 1 . 4 Grunt 14 | . 10 4 . . Demolisher 1 | . . . . 1 Best Kill Streak 5 | 1 4 3 . 5 Combat Bots Only 4 | . 3 3 . 4 Max Kills in Single Turn 2 | 1 2 1 . 1 Gunslinging 1 | . 1 . . . Exploded . | . . . . . Melee . | . . . . . Uniques/NPCs Destroyed . | . . . . . Combat | -11 -10 -10 -10 -9 -------- Run | Scr Mat Min Exi Min Damage Taken 1378 | . 531 112 . 735 Core 292 | . 110 10 . 172 Absorbed by Shields . | . . . . . Core Remaining (%) 100 | 100 . . . . Volleys Fired 111 | 8 77 13 . 13 Largest 2 | 2 2 2 . 2 Hottest 80 | 40 80 80 . 80 Shots Fired 220 | 16 154 26 . 24 Gun 183 | 16 136 13 . 18 Cannon 37 | . 18 13 . 6 Launcher . | . . . . . Special . | . . . . . Kinetic 171 | 16 134 13 . 8 Thermal 39 | . 20 13 . 6 Explosive . | . . . . . Electromagnetic 10 | . . . . 10 Robot Hit Streak 17 | 11 17 5 . 11 Robot Miss Streak 3 | 1 2 2 . 3 Penetration Max . | . . . . . Secondary Targets 2 | . 2 . . . Max Gunslinging Chain 1 | . 1 . . . Shots Hit Robots 141 | 13 98 17 . 13 Core Hits 66 | 2 46 9 . 9 Critical Hits 2 | . 2 . . . Critical Kills 1 | . 1 . . . Critical Parts Destroyed 1 | . 1 . . . Melee Attacks . | . . . . . Impact . | . . . . . Slashing . | . . . . . Piercing . | . . . . . Sneak Attacks . | . . . . . Combat Hostiles . | . . . . . Follow-up Attacks . | . . . . . Damage Inflicted 1953 | 127 1280 270 . 276 Guns 1369 | 127 1033 78 . 131 Cannons 527 | . 247 192 . 88 Explosions 57 | . . . . 57 Melee . | . . . . . Ramming . | . . . . . Kinetic 1266 | 127 1010 78 . 51 Thermal 607 | . 270 192 . 145 Explosive . | . . . . . Electromagnetic 80 | . . . . 80 Impact . | . . . . . Slashing . | . . . . . Piercing . | . . . . . Highest Corruption . | . . . . . Average Corruption . | . . . . . Corruption Purged . | . . . . . Overload Shots . | . . . . . Overflow Damage . | . . . . . Projectiles . | . . . . . Explosions . | . . . . . Melee . | . . . . . Knockbacks . | . . . . . Impact . | . . . . . Kinetic . | . . . . . Secondary . | . . . . . Self-Inflicted Damage . | . . . . . Shots . | . . . . . Rammed . | . . . . . Targets Rammed . | . . . . . Kicked . | . . . . . Crushed . | . . . . . Highest Temperature 172 | . 90 172 . 54 Average Temperature 36 | . 29 57 . 20 Received Heat Transfer 156 | . 90 66 . . Siege Activations . | . . . . . Robots Corrupted . | . . . . . Combat Hostiles . | . . . . . Parts Fried . | . . . . . Impact Corruptions . | . . . . . Robots Melted . | . . . . . Combat Hostiles . | . . . . . Parts Melted 1 | . 1 . . . Heat Transferred 1260 | . 568 407 . 285 Parts Sabotaged . | . . . . . Parts Stolen . | . . . . . Parts Stripped . | . . . . . Power Chain Reactions 1 | . . . . 1 Missiles Intercepted . | . . . . . Alert | -11 -10 -10 -10 -9 ------- Run | Scr Mat Min Exi Min Peak Influence 264 | 5 264 121 . 100 Average Influence 86 | 1 134 39 . 66 Maximum Alert Level 1 | . 1 . . . Low Security (%) 91 | 100 82 100 . 100 Level 1 8 | . 17 . . . Level 2 . | . . . . . Level 3 . | . . . . . Level 4 . | . . . . . Level 5 . | . . . . . High Security . | . . . . . Max Security . | . . . . . Squads Dispatched 4 | . 3 1 . . Investigation . | . . . . . Extermination . | . . . . . Reinforcement 3 | . 3 . . . Assault 1 | . . 1 . . Garrison . | . . . . . Intercept . | . . . . . Construction Impeded . | . . . . . Haulers Reinforced . | . . . . . Stealth | -11 -10 -10 -10 -9 --------- Run | Scr Mat Min Exi Min Distress Signals . | . . . . . Communications Jammed . | . . . . . Distress Signals . | . . . . . Times Spotted 43 | . 29 8 . 6 Peak Tracking Total 4 | . 4 3 . 4 Tactical Retreats 2 | . 2 . . . Traps | -11 -10 -10 -10 -9 ------- Run | Scr Mat Min Exi Min Traps Triggered . | . . . . . Indirectly . | . . . . . Trap Hack Attempts . | . . . . . Triggered . | . . . . . Disarmed . | . . . . . Reprogrammed . | . . . . . Reused . | . . . . . Traps Extracted . | . . . . . Installed . | . . . . . Triggered . | . . . . . Machines | -11 -10 -10 -10 -9 ---------- Run | Scr Mat Min Exi Min Machines Disabled 1 | . . . . 1 Max in Single Turn 1 | . . . . 1 Machines Sabotaged . | . . . . . Garrisons Compromised . | . . . . . Overloaded Fab Kills . | . . . . . Fab Network Shutdowns . | . . . . . Hacking | -11 -10 -10 -10 -9 --------- Run | Scr Mat Min Exi Min Machines Accessed 4 | . 2 1 1 . Terminals 3 | . 2 1 . . Fabricators . | . . . . . Repair Stations . | . . . . . Recycling Units . | . . . . . Scanalyzers . | . . . . . Garrison Access . | . . . . . Total Hacks 20 | . 7 3 10 . Successful 17 | . 5 2 10 . Failed 3 | . 2 1 . . Catastrophic . | . . . . . Database Lockouts . | . . . . . Manual 10 | . 7 3 . . Terminals 10 | . 7 3 . . Fabricators . | . . . . . Repair Stations . | . . . . . Recycling Units . | . . . . . Scanalyzers . | . . . . . Garrison Access . | . . . . . Terminal Hacks 13 | . 2 1 10 . Record 10 | . . . 10 . Alert Level 1 | . 1 . . . Zone Layout 2 | . 1 1 . . Fabricator Hacks . | . . . . . Repair Station Hacks . | . . . . . Recycling Unit Hacks . | . . . . . Scanalyzer . | . . . . . Garrison Access Hacks . | . . . . . Unauthorized Hacks 11 | . 8 3 . . Terminals 4 | . 3 1 . . Track 1 | . 1 . . . Botnet 3 | . 2 1 . . Fabricators . | . . . . . Repair Stations . | . . . . . Recycling Units . | . . . . . Scanalyzers . | . . . . . Garrison Access . | . . . . . Data Cores Recovered . | . . . . . Used . | . . . . . Hacking Detections 3 | . 2 1 . . Full Trace Events . | . . . . . Feedback Events . | . . . . . Feedback Blocked . | . . . . . Robot Schematics Acquired . | . . . . . Robots Built . | . . . . . Matter . | . . . . . Time . | . . . . . Total Robot Build Rating . | . . . . . Part Schematics Acquired . | . . . . . Parts Built . | . . . . . Matter . | . . . . . Time . | . . . . . Total Part Build Rating . | . . . . . Parts Repaired . | . . . . . Time . | . . . . . Parts Recycled . | . . . . . Recycled Matter . | . . . . . Retrieved Matter . | . . . . . Retrieved Components . | . . . . . Parts Scanalyzed . | . . . . . Part Schematics Acquired . | . . . . . Parts Damaged . | . . . . . Bothacking | -11 -10 -10 -10 -9 ------------ Run | Scr Mat Min Exi Min Used RIF Installer . | . . . . . Robots Hacked . | . . . . . Non-combat . | . . . . . Combat . | . . . . . Robot Hacks Applied . | . . . . . Relay Couplers Released . | . . . . . Robots Rewired . | . . . . . Allies Hacked . | . . . . . Hacks Repelled . | . . . . . Allies | -11 -10 -10 -10 -9 -------- Run | Scr Mat Min Exi Min Total Allies 2 | . . 2 . . Largest Group 1 | . . 1 1 1 Highest-Rated Group 31 | . . 31 28 28 Highest-Rated Ally 31 | . . 31 28 28 Total Orders . | . . . . . Ally Attacks 9 | . . 8 . 1 Total Damage 84 | . . 84 . . Kills 2 | . . 2 . . Allies Corrupted . | . . . . . Allies Melted . | . . . . . Intel | -11 -10 -10 -10 -9 ------- Run | Scr Mat Min Exi Min Robot Analysis Total . | . . . . . Derelict Logs Recovered 2 | . . 2 . . Drone Launches . | . . . . . Drone Recoveries . | . . . . . Exploration | -11 -10 -10 -10 -9 ------------- Run | Scr Mat Min Exi Min Turns Passed 2987 | 132 1355 1140 281 79 Spaces Moved 1453 | 83 602 597 156 15 Core 27 | 27 . . . . Treads . | . . . . . Legs 1426 | 56 602 597 156 15 Wheels . | . . . . . Hover . | . . . . . Flight . | . . . . . Fastest Speed 50 | 50 120 180 180 180 Average Speed 175 | 114 178 180 180 192 Slowest Speed 270 | 150 180 180 180 270 Overloaded Moves . | . . . . . Propulsion Burnouts . | . . . . . Robots Hopped . | . . . . . Cave-ins Triggered . | . . . . . Exploration Rate (%) 48 | 4 91 83 54 9 Regions Visited 4 Branch Regions 3 Pre-discovered Areas 2 | . . 1 1 . Known Exits Taken . | . . . . . Unknown Exits Taken 4 | 1 1 1 1 . Scrap Searched . | . . . . . Spaces Dug . | . . . . . Terrain Destroyed 1 | . . . . 1 Melee . | . . . . . Projectile . | . . . . . AOE 1 | . . . . 1 Actions | -11 -10 -10 -10 -9 --------- Run | Scr Mat Min Exi Min Total 1669 | 101 731 639 157 41 Wait 56 | 3 24 22 2 5 Move 1449 | 82 601 596 155 15 Hop . | . . . . . Pick Up 21 | 1 17 3 . . Fast Attach 8 | 7 1 . . . Attach 7 | . 1 1 . 5 Detach . | . . . . . Swap 8 | . 5 1 . 2 Drop 9 | . 5 3 . 1 Fire 111 | 8 77 13 . 13 Melee . | . . . . . Ram . | . . . . . Kick . | . . . . . Crush . | . . . . . Escape Stasis . | . . . . . Rewire . | . . . . . Trap . | . . . . . Miscellaneous . | . . . . . Route ------- -11/Scrapyard -10/Materials (discovered 4 exits: [*Mat x2] / *Min x2) -10/Mines (discovered 2 exits: [*Mat] / *Exi) -10/Exiles -9/Mines History --------- Turn | Location | Event 25 | -11/Scrapyard | Discovered new exit (range 15) 133 | -11/Scrapyard | Entered Materials 325 | -10/Materials | Build established: Mutant 348 | -10/Materials | Discovered new exit (range 9) 866 | -10/Materials | Discovered new exit (range 13) 1140 | -10/Materials | Discovered new exit (range 5) 1162 | -10/Materials | Discovered new exit (range 16) 1488 | -10/Materials | Entered Mines 1756 | -10/Mines | Learned location of 1 exit from Materials 2022 | -10/Mines | Discovered new exit (range 6) 2131 | -10/Mines | Received a Mining Laser from a helpful Derelict 2211 | -10/Mines | Deemed a non-threat by the Exiles lab entrance 2211 | -10/Mines | Discovered new exit (range 5) 2274 | -10/Mines | Received a Rocket Launcher from a helpful Derelict 2458 | -10/Mines | Met a Derelict testing a Signal Generator 2628 | -10/Mines | Entered Exiles 2628 | -10/Exiles | Accompanied by 1 ally 2674 | -10/Exiles | Met 8R-AWN 2703 | -10/Exiles | Met EX-HEX 2797 | -10/Exiles | Met EX-DEC 2827 | -10/Exiles | Learned location of Zion (-7) 2892 | -10/Exiles | Discovered new exit (range 11) 2909 | -10/Exiles | Entered Mines 2909 | -9/Mines | Accompanied by 1 ally 2910 | -9/Mines | Assembled infested the area 2919 | -9/Mines | Core integrity fell below 50% 2983 | -9/Mines | Core integrity fell below 20% 2988 | -9/Mines | Destroyed by D-53 Grenadier with Mini Grenade Launcher Last Messages --------------- 02935_ S-10 Pest destroyed. 02936_ K-01 Serf collects debris. 02938_ K-01 Serf destroyed. 02943_ Acquired 28 matter. 02945_ Acquired 11 matter. 02959_ C-30 ARC bursts open, deploying its payload. 02959_ D-53 Grenadier unfolds itself. 02959_ Assault Rifle destroyed. 02965_ Ion Engine destroyed. 02967_ Carbon-fiber Leg destroyed. 02968_ The unstable cave ceiling collapses. 02968_ Chain reaction triggered in Lgt. Deuterium Engine. 02968_ D-53 Grenadier destroyed. 02972_ The unstable cave ceiling collapses. 02972_ EM Pulse Gun destroyed. 02973_ The unstable cave ceiling collapses. 02974_ Aluminum Leg destroyed. 02976_ The unstable cave ceiling collapses. 02979_ EM Pulse Gun destroyed. 02980_ The unstable cave ceiling collapses. Map ----- +----------------------------------------------------+ | | | | | | | | | | | | | | | | | | | | | | | | | | | | | | | | | | | | | ???????????????#??#??????????????????????? | | ????????####### ## ##????????????????????? | | ????????# #????#####???????????? | | ????????# ##?? #???????????? | | ????????# """ ! ## "" #???????????? | | ????????# """ """ ????????????? | | ????????# """ """ ????????????? | | ????????# @ # #???????????? | | ????????##### # #???????????? | | ????????????# ########???????????? | | ????????????# #??????????????????? | | ????????????# # #??????????????????? | | ????????????## # ?????????????????? | | ?????????????## d% ## ???????????????? | | ??????????????## ?? ?????????????? | | ???????????????# $ ?? #???????????? | | ???????????????# #####??? ##???????????? | | ???????????????# ????????? #????????????? | | ??????????????? ?????????? #????????????? | | ??????????????? ??????????? ????????????? | | ??????????????? ????????????????????????? | | ??????????????? ????????????????????????? | | ?????????????? ????????????????????????? | | ?????????????? #????????????????????????? | | ??????????????##?????????????????????????? | | ?????????????????????????????????????????? | | ?????????????????????????????????????????? | | ?????????????????????????????????????????? | | ?????????????????????????????????????????? | | ?????????????????????????????????????????? | | ?????????????????????????????????????????? | | ?????????????????????????????????????????? | +----------------------------------------------------+ Best States ------------- Heat Dissipation 25 Energy Generation 10 Energy Capacity 250 Matter Stores 300 Matter Capacity 300 Sight Range 16 Terrain Scan Density 10 Evasion (%) 40 Item Schematics ----------------- None Robot Schematics ------------------ None Fabricated ------------ Nothing Alien Tech Used ----------------- None Achievements -------------- None Challenges ------------ None Game ------ Seed GravmagHardcellElectrolaser Manual? 0 Play Time 00:11:57 Cumulative 1019.6 hours Start 2020.03.17 @ 15:44:06 End 2020.03.17 @ 15:55:00 Sessions 1 Manual Loads 0 Difficulty Rogue Special Mode None Game No. 328 Rogue 328 Adventurer 0 Explorer 0 Win Type - Total 76 Types 14/8/34/5/1/2/12 Lore% 97 Gallery% 95 Achievement% 84 Wizard Run 0 Options --------- ASCII 0 Keyboard 0 Movement Numpad Keybinds 0 Fullscreen 1 Font 18/SmallcapsGlow Map View 76x50 Tactical HUD 1 Map Filters NONE Filters NONE Steam 1 RUN: b023d630-cd1e-4b68-a625-476e1d65b4a1